lending/lending_fUSD_20240411
["ID","MTS","AMOUNT","RATE_DAILY","PERIOD"]
[322205656,1712870034005,-160.340579,0.00032877,7]
[322205657,1712870034014,-160.340579,0.00032877,7]
[322205658,1712870034023,-160.340579,0.00032877,7]
[322205659,1712870034032,-160.340579,0.00032877,7]
[322205660,1712870034042,-151.0,0.00032877,7]
[322205661,1712870034051,-151.0,0.00032877,7]
[322205662,1712870034060,-151.0,0.00032877,7]
[322205663,1712870034069,-151.0,0.00032877,7]
[322205664,1712870034078,-151.0,0.00032877,7]
[322205665,1712870034087,-151.0,0.00032877,7]
[322205666,1712870034097,-151.0,0.00032877,7]
[322205667,1712870034106,-151.0,0.00032877,7]
[322205668,1712870034116,-203.38057,0.00032877,7]
[322205669,1712870034125,-176.942822,0.00032877,7]
[322205670,1712870034135,-176.942822,0.00032877,7]
[322205671,1712870034144,-176.942822,0.00032877,7]
[322205672,1712870034153,-176.942822,0.00032877,7]
[322205673,1712870034162,-176.942822,0.00032877,7]
[322205674,1712870034171,-176.942822,0.00032877,7]
[322205675,1712870034180,-176.942822,0.00032877,7]
[322205676,1712870034190,-176.942822,0.00032877,7]
[322205677,1712870034199,-176.942822,0.00032877,7]
[322205678,1712870034208,-176.942822,0.00032877,7]
[322205679,1712870034218,-176.942822,0.00032877,7]
[322205680,1712870034227,-176.942822,0.00032877,7]
[322205681,1712870034236,-176.942822,0.00032877,7]
[322205682,1712870034246,-176.942822,0.00032877,7]
[322205683,1712870034255,-176.942822,0.00032877,7]
[322205684,1712870034264,-151.0,0.00032877,7]
[322205685,1712870034273,-176.942822,0.00032877,7]
[322205686,1712870034282,-151.0,0.00032877,7]
[322205687,1712870034291,-176.942822,0.00032877,7]
[322205688,1712870034300,-151.0,0.00032877,7]
[322205689,1712870034310,-176.942822,0.00032877,7]
[322205690,1712870034319,-153.547923,0.00032877,7]
[322205691,1712870034328,-176.942822,0.00032877,7]
[322205692,1712870034338,-176.942822,0.00032877,7]
[322205693,1712870034347,-151.0,0.00032877,7]
[322205694,1712870034356,-151.0,0.00032877,7]
[322205695,1712870034365,-151.0,0.00032877,7]
[322205696,1712870034374,-151.0,0.00032877,7]
[322205697,1712870034383,-154.237556,0.00032877,7]
[322205698,1712870034392,-160.502803,0.00032877,7]
[322205699,1712870034401,-151.0,0.00032877,7]
[322205700,1712870034415,-151.0,0.00032877,7]
[322205701,1712870034424,-151.0,0.00032877,7]
[322205702,1712870034433,-151.0,0.00032877,7]
[322205703,1712870034442,-151.0,0.00032877,7]
[322205704,1712870034451,-151.0,0.00032877,7]
[322205705,1712870034461,-155.518848,0.00032877,7]
[322205706,1712870034471,-151.0,0.00032877,7]
[322205707,1712870034481,-151.0,0.00032877,7]
[322205708,1712870034492,-151.0,0.00032877,7]
[322205709,1712870034501,-151.0,0.00032877,7]
[322205710,1712870034511,-151.0,0.00032877,7]
[322205711,1712870034521,-387.508723,0.00032877,7]
[322205712,1712870034530,-151.0,0.00032877,7]
[322205713,1712870034539,-387.508723,0.00032877,7]
[322205714,1712870034548,-151.0,0.00032877,7]
[322205715,1712870034557,-151.0,0.00032877,7]
[322205716,1712870034566,-387.508723,0.00032877,7]
[322205717,1712870034575,-151.0,0.00032877,7]
[322205718,1712870034585,-387.508723,0.00032877,7]
[322205719,1712870034594,-151.0,0.00032877,7]
[322205720,1712870034603,-387.508723,0.00032877,7]
[322205721,1712870034612,-180.64216,0.00032877,7]
[322205722,1712870034621,-387.508723,0.00032877,7]
[322205723,1712870034630,-387.508723,0.00032877,7]
[322205724,1712870034640,-387.508723,0.00032877,7]
[322205725,1712870034650,-387.508723,0.00032877,7]
[322205726,1712870034659,-387.508723,0.00032877,7]
[322205727,1712870034668,-387.508723,0.00032877,7]
[322205728,1712870034677,-387.508723,0.00032877,7]
[322205729,1712870034686,-387.508723,0.00032877,7]
[322205730,1712870034696,-387.508723,0.00032877,7]
[322205731,1712870034705,-387.508723,0.00032877,7]
[322205732,1712870034714,-151.0,0.00032877,7]
[322205733,1712870034724,-387.508723,0.00032877,7]
[322205734,1712870034734,-151.0,0.00032877,7]
[322205735,1712870034743,-387.508723,0.00032877,7]
[322205736,1712870034753,-387.508723,0.00032877,7]
[322205737,1712870034762,-387.508723,0.00032877,7]
[322205738,1712870034771,-387.508731,0.00032877,7]
[322205739,1712870034780,-321.03637,0.00032877,7]
[322205740,1712870034789,-321.03637,0.00032877,7]
[322205741,1712870034798,-321.03637,0.00032877,7]
[322205742,1712870034808,-321.03637,0.00032877,7]
[322205743,1712870034816,-321.03637,0.00032877,7]
[322205744,1712870034826,-321.03637,0.00032877,7]
[322205745,1712870034835,-321.03637,0.00032877,7]
[322205746,1712870034844,-321.03637,0.00032877,7]
[322205747,1712870034853,-321.03637,0.00032877,7]
[322205748,1712870034862,-321.03637,0.00032877,7]
[322205749,1712870034871,-321.03637,0.00032877,7]
[322205750,1712870034880,-321.03637,0.00032877,7]
[322205751,1712870034889,-321.03637,0.00032877,7]
[322205752,1712870034898,-152.347874,0.00032877,7]
[322205753,1712870034907,-321.03637,0.00032877,7]
[322205754,1712870034916,-321.03637,0.00032877,7]
[322205755,1712870034925,-321.03637,0.00032877,7]
[322205756,1712870034934,-321.03637,0.00032877,7]
[322205757,1712870034942,-321.03637,0.00032877,7]
[322205758,1712870034951,-321.03637,0.00032877,7]
[322205759,1712870034960,-321.03637,0.00032877,7]
[322205760,1712870034969,-151.0,0.00032877,7]
[322205761,1712870034978,-151.0,0.00032877,7]
[322205762,1712870034988,-151.0,0.00032877,7]
[322205763,1712870034997,-151.0,0.00032877,7]
[322205764,1712870035006,-151.0,0.00032877,7]
[322205765,1712870035014,-151.0,0.00032877,7]
[322205766,1712870035023,-151.0,0.00032877,7]
[322205767,1712870035033,-151.0,0.00032877,7]
[322205768,1712870035043,-251.151876,0.00032877,7]
[322205769,1712870035052,-151.0,0.00032877,7]
[322205770,1712870035062,-151.0,0.00032877,7]
[322205771,1712870035073,-151.0,0.00032877,7]
[322205772,1712870035083,-151.0,0.00032877,7]
[322205773,1712870035093,-151.0,0.00032877,7]
[322205774,1712870035103,-151.0,0.00032877,7]
[322205775,1712870035113,-244.646615,0.00032877,7]
[322205776,1712870035122,-151.0,0.00032877,7]
[322205777,1712870035132,-151.0,0.00032877,7]
[322205778,1712870035141,-151.0,0.00032877,7]
[322205779,1712870035151,-158.582803,0.00032877,7]
[322205780,1712870035159,-151.0,0.00032877,7]
[322205781,1712870035169,-151.0,0.00032877,7]
[322205782,1712870035179,-151.0,0.00032877,7]
[322205783,1712870035188,-151.0,0.00032877,7]
[322205784,1712870035197,-151.0,0.00032877,7]
[322205785,1712870035208,-151.0,0.00032877,7]
[322205786,1712870035218,-151.0,0.00032877,7]
[322205787,1712870035229,-151.0,0.00032877,7]
[322205788,1712870035238,-151.0,0.00032877,7]
[322205789,1712870035248,-151.0,0.00032877,7]
[322205790,1712870035258,-151.0,0.00032877,7]
[322205791,1712870035267,-151.0,0.00032877,7]
[322205792,1712870035278,-161.211378,0.00032877,7]
[322205793,1712870035289,-53273.59,0.00032877,2]
[322205794,1712870035299,-151.0,0.00032877,7]
[322205795,1712870035310,-151.0,0.00032877,7]
[322205796,1712870035320,-151.0,0.00032877,7]
[322205797,1712870035331,-152.231429,0.00032877,7]
[322205798,1712870035341,-151.0,0.00032877,7]
[322205799,1712870035350,-151.0,0.00032877,7]
[322205800,1712870035360,-151.0,0.00032877,7]
[322205801,1712870035369,-151.0,0.00032877,7]
[322205802,1712870035378,-154.750036,0.00032877,7]
[322205803,1712870035387,-151.0,0.00032877,7]
[322205804,1712870035397,-151.0,0.00032877,7]
[322205805,1712870035408,-152.357656,0.00032877,7]
[322205806,1712870035418,-37648.31,0.00032877,2]
[322205807,1712870035428,-151.0,0.00032877,7]
[322205808,1712870035438,-441.716703,0.00032877,7]
[322205809,1712870035447,-151.0,0.00032877,7]
[322205810,1712870035457,-441.716703,0.00032877,7]
[322205811,1712870035466,-151.0,0.00032877,7]
[322205812,1712870035476,-441.716703,0.00032877,7]
[322205813,1712870035486,-151.0,0.00032877,7]
[322205814,1712870035496,-441.716703,0.00032877,7]
[322205815,1712870035507,-243.537156,0.00032877,7]
[322205816,1712870035517,-441.716703,0.00032877,7]
[322205817,1712870035527,-441.716703,0.00032877,7]
[322205818,1712870035537,-441.716703,0.00032877,7]
[322205819,1712870035547,-441.716703,0.00032877,7]
[322205820,1712870035557,-441.716703,0.00032877,7]
[322205821,1712870035567,-441.716703,0.00032877,7]
[322205822,1712870035577,-441.716703,0.00032877,7]
[322205823,1712870035587,-441.716703,0.00032877,7]
[322205824,1712870035596,-441.716703,0.00032877,7]
[322205825,1712870035606,-441.716703,0.00032877,7]
[322205826,1712870035615,-441.716703,0.00032877,7]
[322205827,1712870035626,-441.716703,0.00032877,7]
[322205828,1712870035635,-441.716703,0.00032877,7]
[322205829,1712870035645,-441.716703,0.00032877,7]
[322205830,1712870035654,-151.0,0.00032877,7]
[322205831,1712870035665,-441.716703,0.00032877,7]
[322205832,1712870035675,-151.834178,0.00032877,7]
[322205833,1712870035684,-151.0,0.00032877,7]
[322205834,1712870035694,-441.716703,0.00032877,7]
[322205835,1712870035703,-151.0,0.00032877,7]
[322205836,1712870035714,-151.0,0.00032877,7]
[322205837,1712870035726,-151.0,0.00032877,7]
[322205838,1712870035735,-151.0,0.00032877,7]
[322205839,1712870035745,-151.0,0.00032877,7]
[322205840,1712870035755,-151.0,0.00032877,7]
[322205841,1712870035765,-151.0,0.00032877,7]
[322205842,1712870035774,-200.520274,0.00032877,7]
[322205843,1712870035784,-412.167738,0.00032877,2]
[322205844,1712870035794,-412.167738,0.00032877,2]
[322205845,1712870035803,-412.167738,0.00032877,2]
[322205846,1712870035813,-412.167738,0.00032877,2]
[322205847,1712870035823,-412.167738,0.00032877,2]
[322205848,1712870035834,-412.167738,0.00032877,2]
[322205849,1712870035844,-412.167738,0.00032877,2]
[322205850,1712870035853,-412.167738,0.00032877,2]
[322205851,1712870035864,-412.167738,0.00032877,2]
[322205852,1712870035876,-163.411635,0.00032877,7]
[322205853,1712870035885,-412.167738,0.00032877,2]
[322205854,1712870035895,-163.411635,0.00032877,7]
[322205855,1712870035905,-412.167738,0.00032877,2]
[322205856,1712870035915,-163.411635,0.00032877,7]
[322205857,1712870035925,-412.167738,0.00032877,2]
[322205858,1712870035934,-163.411635,0.00032877,7]
[322205859,1712870035945,-412.167738,0.00032877,2]
[322205860,1712870035954,-163.411635,0.00032877,7]
[322205861,1712870035965,-412.167738,0.00032877,2]
[322205862,1712870035977,-163.411635,0.00032877,7]
[322205863,1712870035987,-412.167738,0.00032877,2]
[322205864,1712870035997,-163.411635,0.00032877,7]
[322205865,1712870036008,-412.167738,0.00032877,2]
[322205866,1712870036017,-163.411635,0.00032877,7]
[322205867,1712870036026,-412.167738,0.00032877,2]
[322205868,1712870036035,-163.411635,0.00032877,7]
[322205869,1712870036044,-412.167738,0.00032877,2]
[322205870,1712870036053,-163.411635,0.00032877,7]
[322205871,1712870036062,-412.167738,0.00032877,2]
[322205872,1712870036070,-163.411635,0.00032877,7]
[322205873,1712870036079,-163.411635,0.00032877,7]
[322205874,1712870036089,-412.16773,0.00032877,2]
[322205875,1712870036098,-163.411635,0.00032877,7]
[322205876,1712870036107,-163.411635,0.00032877,7]
[322205877,1712870036116,-163.411635,0.00032877,7]
[322205878,1712870036127,-163.411635,0.00032877,7]
[322205879,1712870036137,-163.411635,0.00032877,7]
[322205880,1712870036146,-163.411635,0.00032877,7]
[322205881,1712870036156,-163.411635,0.00032877,7]
[322205882,1712870036166,-163.411629,0.00032877,7]
[322205883,1712870036177,-151.47,0.00032877,2]
[322205884,1712870036187,-158.505964,0.00032877,7]
[322205885,1712870036196,-151.0,0.00032877,7]
[322205886,1712870036206,-151.0,0.00032877,7]
[322205887,1712870036217,-151.0,0.00032877,7]
[322205888,1712870036227,-151.0,0.00032877,7]
[322205889,1712870036238,-151.0,0.00032877,7]
[322205890,1712870036248,-151.0,0.00032877,7]
[322205891,1712870036257,-151.0,0.00032877,7]
[322205892,1712870036266,-151.0,0.00032877,7]
[322205893,1712870036275,-151.0,0.00032877,7]
[322205894,1712870036421,-151.0,0.00032877,7]
[322205895,1712870036431,-151.0,0.00032877,7]
[322205896,1712870036440,-151.0,0.00032877,7]
[322205897,1712870036451,-151.0,0.00032877,7]
[322205898,1712870036460,-299.01108,0.00032877,7]
[322205899,1712870036470,-13051.39352668,0.000329,30]
[322205900,1712870036480,-650.93,0.000329,2]
[322205901,1712870036490,-596.0,0.000329,2]
[322205902,1712870036500,-150.0,0.00032912,2]
[322205903,1712870036510,-7355.46,0.00032922,5]
[322205904,1712870036520,-150.0,0.00032924,2]
[322205905,1712870036529,-1500.0,0.00032936,2]
[322205906,1712870036538,-272.0,0.0003294,19]
[322205907,1712870036548,-150.0,0.00032942,2]
[322205908,1712870036557,-150.0,0.00032992,2]
[322205909,1712870036567,-100000.0,0.00033,13]
[322205910,1712870036576,-612.90661396,0.00033,2]
[322205911,1712870036586,-22559.0,0.00033,2]
[322205912,1712870036595,-2742.0,0.00033,120]
[322205913,1712870036605,-1402.20560027,0.00033,7]
[322205914,1712870036614,-30000.0,0.00033,3]
[322205915,1712870036624,-24315.65436082,0.00033,2]
[322205916,1712870036634,-153.24438006,0.00033008,7]
[322205917,1712870036643,-150.9125583,0.00033014,7]
[322205918,1712870036653,-300.0,0.00033016,2]
[322205919,1712870036663,-300.0,0.00033021,2]
[322205920,1712870036672,-154.94218976,0.00033023,7]
[322205921,1712870036681,-150.0,0.0003303,2]
[322205922,1712870036690,-162.87122376,0.00033037,7]
[322205923,1712870036699,-300.0,0.00033038,2]
[322205924,1712870036708,-300.0,0.00033038,2]
[322205925,1712870036718,-300.0,0.00033061,2]
[322205926,1712870036728,-154.94218976,0.00033083,7]
[322205927,1712870036737,-1249.999999,0.000331,18]
[322205928,1712870036748,-2677.77815238,0.000331,22]
[322205929,1712870036757,-2800.0,0.000331,23]
[322205930,1712870036769,-2500.0,0.000331,26]
[322205931,1712870036779,-2500.0,0.000331,31]
[322205932,1712870036789,-150.0,0.0003312,2]
[322205933,1712870036798,-150.0,0.0003312,2]
[322205934,1712870036810,-300.0,0.00033147,2]
[322205935,1712870036820,-157.041205,0.00033148,23]
[322205936,1712870036830,-507.89,0.0003315,7]
[322205937,1712870036840,-590.86,0.0003315,7]
[322205938,1712870036849,-805.44,0.0003315,7]
[322205939,1712870036859,-629.54,0.0003315,7]
[322205940,1712870036868,-765.12,0.0003315,7]
[322205941,1712870036878,-500.0,0.0003315,7]
[322205942,1712870036888,-673.55,0.0003315,7]
[322205943,1712870036898,-610.11270768,0.0003315,7]
[322205944,1712870036907,-500.0,0.0003315,7]
[322205945,1712870036917,-1055.22,0.0003315,7]
[322205946,1712870036928,-838.26,0.0003315,7]
[322205947,1712870036938,-513.12,0.0003315,7]
[322205948,1712870036949,-561.16,0.0003315,7]
[322205949,1712870036959,-520.88,0.0003315,7]
[322205950,1712870036969,-532.8,0.0003315,7]
[322205951,1712870036978,-717.66,0.0003315,7]
[322205952,1712870036987,-956.54,0.0003315,7]
[322205953,1712870036998,-527.16,0.0003315,7]
[322205954,1712870037007,-500.0,0.0003315,7]
[322205955,1712870037017,-583.53,0.0003315,7]
[322205956,1712870037029,-500.0,0.0003315,7]
[322205957,1712870037037,-794.27,0.0003315,7]
[322205958,1712870037048,-775.81,0.0003315,7]
[322205959,1712870037058,-1268.53,0.0003315,7]
[322205960,1712870037068,-579.81,0.0003315,7]
[322205961,1712870037077,-683.65,0.0003315,7]
[322205962,1712870037087,-1283.53,0.0003315,7]
[322205963,1712870037098,-1242.22,0.0003315,7]
[322205964,1712870037109,-686.6,0.0003315,7]
[322205965,1712870037119,-610.16,0.0003315,7]
[322205966,1712870037128,-964.51,0.0003315,7]
[322205967,1712870037137,-552.23,0.0003315,7]
[322205968,1712870037147,-606.86064291,0.0003315,7]
[322205969,1712870037157,-993.58,0.0003315,7]
[322205970,1712870037168,-675.23,0.0003315,7]
[322205971,1712870037178,-1308.49,0.0003315,7]
[322205972,1712870037188,-703.03,0.0003315,7]
[322205973,1712870037198,-564.56,0.0003315,7]
[322205974,1712870037209,-561.9,0.0003315,7]
[322205975,1712870037219,-560.79,0.0003315,7]
[322205976,1712870037231,-1067.51,0.0003315,7]
[322205977,1712870037242,-598.24,0.0003315,7]
[322205978,1712870037254,-691.29,0.0003315,7]
[322205979,1712870037263,-500.0,0.0003315,7]
[322205980,1712870037274,-645.96,0.0003315,7]
[322205981,1712870037284,-704.14,0.0003315,7]
[322205982,1712870037294,-1172.44,0.0003315,7]
[322205983,1712870037305,-1403.78,0.0003315,7]
[322205984,1712870037314,-820.3,0.0003315,7]
[322205985,1712870037325,-1352.31,0.0003315,7]
[322205986,1712870037336,-868.58,0.0003315,7]
[322205987,1712870037346,-1263.1,0.0003315,7]
[322205988,1712870037355,-1192.54,0.0003315,7]
[322205989,1712870037365,-1391.45,0.0003315,7]
[322205990,1712870037374,-811.44,0.0003315,7]
[322205991,1712870037383,-609.69,0.0003315,7]
[322205992,1712870037392,-676.3,0.0003315,7]
[322205993,1712870037401,-1771.03,0.0003315,7]
[322205994,1712870037415,-540.39,0.0003315,7]
[322205995,1712870037425,-541.31,0.0003315,7]
[322205996,1712870037434,-1468.06,0.0003315,7]
[322205997,1712870037444,-862.27,0.0003315,7]
[322205998,1712870037454,-1183.63,0.0003315,7]
[322205999,1712870037463,-839.54,0.0003315,7]
[322206000,1712870037473,-1787.12,0.0003315,7]
[322206001,1712870037482,-645.52262996,0.0003315,7]
[322206002,1712870037492,-500.0,0.0003315,7]
[322206003,1712870037502,-1253.73,0.0003315,7]
[322206004,1712870037511,-735.73,0.0003315,7]
[322206005,1712870037520,-1318.44,0.0003315,7]
[322206006,1712870037529,-700.59,0.0003315,7]
[322206007,1712870037539,-1495.11,0.0003315,7]
[322206008,1712870037548,-758.95,0.0003315,7]
[322206009,1712870037557,-521.21,0.0003315,7]
[322206010,1712870037567,-1654.67,0.0003315,7]
[322206011,1712870037577,-638.47,0.0003315,7]
[322206012,1712870037586,-1164.2,0.0003315,7]
[322206013,1712870037595,-949.05,0.0003315,7]
[322206014,1712870037604,-777.64,0.0003315,7]
[322206015,1712870037613,-1096.04,0.0003315,7]
[322206016,1712870037623,-646.84,0.0003315,7]
[322206017,1712870037633,-958.72,0.0003315,7]
[322206018,1712870037644,-683.7,0.0003315,7]
[322206019,1712870037653,-897.54,0.0003315,7]
[322206020,1712870037663,-684.68,0.0003315,7]
[322206021,1712870037674,-543.38,0.0003315,7]
[322206022,1712870037684,-809.17,0.0003315,7]
[322206023,1712870037696,-698.14,0.0003315,7]
[322206024,1712870037707,-1067.08,0.0003315,7]
[322206025,1712870037719,-1021.38,0.0003315,7]
[322206026,1712870037730,-784.4,0.0003315,7]
[322206027,1712870037739,-1207.29,0.0003315,7]
[322206028,1712870037749,-853.95,0.0003315,7]
[322206029,1712870037759,-1154.75,0.0003315,7]
[322206030,1712870037771,-1500.39,0.0003315,7]
[322206031,1712870037782,-1102.48,0.0003315,7]
[322206032,1712870037793,-1684.95,0.0003315,7]
[322206033,1712870037803,-864.47,0.0003315,7]
[322206034,1712870037814,-1050.08,0.0003315,7]
[322206035,1712870037824,-1060.45,0.0003315,7]
[322206036,1712870037834,-534.42,0.0003315,7]
[322206037,1712870037845,-727.49,0.0003315,7]
[322206038,1712870037855,-500.0,0.0003315,7]
[322206039,1712870037867,-598.73,0.0003315,7]
[322206040,1712870037878,-1013.17,0.0003315,7]
[322206041,1712870037888,-552.15,0.0003315,7]
[322206042,1712870037899,-722.75,0.0003315,7]
[322206043,1712870037909,-585.74,0.0003315,7]
[322206044,1712870037921,-1454.96,0.0003315,7]
[322206045,1712870037930,-600.91,0.0003315,7]
[322206046,1712870037940,-627.17,0.0003315,7]
[322206047,1712870037951,-1870.66,0.0003315,7]
[322206048,1712870037962,-921.94,0.0003315,7]
[322206049,1712870037974,-1288.35,0.0003315,7]
[322206050,1712870037984,-670.72,0.0003315,7]
[322206051,1712870037994,-1052.23,0.0003315,7]
[322206052,1712870038003,-1720.31,0.0003315,7]
[322206053,1712870038012,-213.1637847,0.0003315,7]
[322206054,1712870038023,-2622.22,0.0003315,7]
[322206055,1712870038032,-1850.14,0.0003315,7]
[322206056,1712870038043,-869.29,0.0003315,7]
[322206057,1712870038052,-933.06,0.0003315,7]
[322206058,1712870038063,-722.11,0.0003315,7]
[322206059,1712870038073,-500.0,0.0003315,2]
[322206060,1712870038084,-1172.68,0.0003315,7]
[322206061,1712870038095,-1203.46,0.0003315,7]
[322206062,1712870038105,-993.8,0.0003315,7]
[322206063,1712870038114,-431.58773491,0.0003315,7]
[322206064,1712870038125,-1318.86,0.0003315,7]
[322206065,1712870038135,-879.12,0.0003315,7]
[322206066,1712870038144,-1664.67,0.0003315,7]
[322206067,1712870038153,-553.15,0.0003315,7]
[322206068,1712870038163,-916.81,0.0003315,7]
[322206069,1712870038173,-923.4,0.0003315,7]
[322206070,1712870038185,-1597.09,0.0003315,7]
[322206071,1712870038195,-500.0,0.0003315,7]
[322206072,1712870038206,-433.35679757,0.0003315,7]
[322206073,1712870038216,-1225.4,0.0003315,7]
[322206074,1712870038227,-1736.6,0.0003315,7]
[322206075,1712870038238,-1687.78,0.0003315,7]
[322206076,1712870038248,-533.65,0.0003315,7]
[322206077,1712870038258,-892.21,0.0003315,7]
[322206078,1712870038268,-698.09,0.0003315,7]
[322206079,1712870038279,-1618.97,0.0003315,7]
[322206080,1712870038290,-500.0,0.0003315,7]
[322206081,1712870038300,-998.14,0.0003315,7]
[322206082,1712870038311,-1890.51,0.0003315,7]
[322206083,1712870038321,-827.22,0.0003315,7]
[322206084,1712870038331,-911.48,0.0003315,7]
[322206085,1712870038342,-1646.03,0.0003315,7]
[322206086,1712870038352,-767.01,0.0003315,7]
[322206087,1712870038361,-1116.76,0.0003315,7]
[322206088,1712870038372,-570.82,0.0003315,7]
[322206089,1712870038381,-1022.77,0.0003315,7]
[322206090,1712870038393,-831.5,0.0003315,7]
[322206091,1712870038402,-680.97,0.0003315,7]
[322206092,1712870038417,-500.0,0.0003315,7]
[322206093,1712870038427,-752.98,0.0003315,7]
[322206094,1712870038437,-1499.79,0.0003315,7]
[322206095,1712870038448,-814.1,0.0003315,7]
[322206096,1712870038458,-7400.19,0.0003315,7]
[322206097,1712870038467,-1023.14,0.0003315,7]
[322206098,1712870038477,-700.72,0.0003315,7]
[322206099,1712870038491,-950.09,0.0003315,7]
[322206100,1712870038502,-1871.77,0.0003315,7]
[322206101,1712870038512,-3724.71,0.0003315,7]
[322206102,1712870038523,-5395.14,0.0003315,7]
[322206103,1712870038533,-1464.27,0.0003315,7]
[322206104,1712870038544,-978.66,0.0003315,7]
[322206105,1712870038553,-693.58,0.0003315,7]
[322206106,1712870038562,-984.51,0.0003315,7]
[322206107,1712870038572,-4620.04,0.0003315,7]
[322206108,1712870038582,-1300.92,0.0003315,7]
[322206109,1712870038704,-934.17,0.0003315,7]
[322206110,1712870038714,-1543.03,0.0003315,7]
[322206111,1712870038726,-5425.41,0.0003315,7]
[322206112,1712870038736,-1214.31,0.0003315,7]
[322206113,1712870038746,-788.68,0.0003315,7]
[322206114,1712870038755,-613.33,0.0003315,7]
[322206115,1712870038765,-827.37,0.0003315,7]
[322206116,1712870038774,-1593.55,0.0003315,7]
[322206117,1712870038783,-1948.7,0.0003315,7]
[322206118,1712870038793,-500.0,0.0003315,7]
[322206119,1712870038802,-9749.83,0.0003315,7]
[322206120,1712870038812,-2131.76,0.0003315,7]
[322206121,1712870038821,-1560.14,0.0003315,7]
[322206122,1712870038831,-1518.32,0.0003315,7]
[322206123,1712870038841,-1413.3,0.0003315,7]
[322206124,1712870038850,-661.44,0.0003315,7]
[322206125,1712870038860,-2479.01,0.0003315,7]
[322206126,1712870038869,-5230.96,0.0003315,7]
[322206127,1712870038878,-3647.95,0.0003315,7]
[322206128,1712870038888,-1464.2,0.0003315,7]
[322206129,1712870038897,-1527.36,0.0003315,7]
[322206130,1712870038907,-1358.23,0.0003315,7]
[322206131,1712870038916,-1020.16,0.0003315,7]
[322206132,1712870038926,-668.8,0.0003315,7]
[322206133,1712870038936,-11162.19,0.0003315,7]
[322206134,1712870038945,-3874.31,0.0003315,7]
[322206135,1712870038954,-41084.78,0.0003315,7]
[322206136,1712870038964,-740.63,0.0003315,7]
[322206137,1712870038973,-548.57,0.0003315,7]
[322206138,1712870038986,-7785.82,0.0003315,7]
[322206139,1712870038995,-1513.09,0.0003315,7]
[322206140,1712870039004,-567.17,0.0003315,7]
[322206141,1712870039014,-3631.93,0.0003315,7]
[322206142,1712870039023,-8421.98,0.0003315,7]
[322206143,1712870039033,-3207.81,0.0003315,7]
[322206144,1712870039043,-2311.09,0.0003315,7]
[322206145,1712870039053,-921.98,0.0003315,7]
[322206146,1712870039062,-12662.48,0.0003315,7]
[322206147,1712870039072,-1525.4,0.0003315,7]
[322206148,1712870039083,-1851.69,0.0003315,7]
[322206149,1712870039093,-3131.37,0.0003315,7]
[322206150,1712870039103,-875.02,0.0003315,7]
[322206151,1712870039112,-2709.87,0.0003315,7]
[322206152,1712870039122,-7402.21,0.0003315,7]
[322206153,1712870039131,-1503.27,0.0003315,7]
[322206154,1712870039141,-2499.54,0.0003315,7]
[322206155,1712870039151,-650.21,0.0003315,7]